fUSD/lending_fUSD_20251118
["ID","MTS","AMOUNT","RATE_DAILY","PERIOD"]
[394350989,1763481045544,-169.86472441,0.00038356,3]
[394350990,1763481045553,-406.35700923,0.00038356,3]
[394350991,1763481045562,-321.07120759,0.00038356,3]
[394350992,1763481045571,-456.46742166,0.00038356,3]
[394350993,1763481045580,-485.93643308,0.00038356,3]
[394350994,1763481045589,-500.0,0.00038356,3]
[394350995,1763481045599,-406.7932545,0.00038356,3]
[394350996,1763481045608,-420.76856907,0.00038356,3]
[394350997,1763481045617,-626.81943089,0.00038356,3]
[394350998,1763481045626,-246.99639295,0.00038356,3]
[394350999,1763481045635,-393.15466056,0.00038356,3]
[394351000,1763481045644,-500.0,0.00038356,3]
[394351001,1763481045654,-409.83392154,0.00038356,3]
[394351002,1763481045663,-500.0,0.00038356,3]
[394351003,1763481045673,-302.64191354,0.00038356,3]
[394351004,1763481045683,-396.09996696,0.00038356,3]
[394351005,1763481045692,-157.0,0.00038356,3]
[394351006,1763481045702,-405.67946221,0.00038356,3]
[394351007,1763481045711,-199.95815143,0.00038356,3]
[394351008,1763481045720,-500.0,0.00038356,3]
[394351009,1763481045729,-500.0,0.00038356,2]
[394351010,1763481045738,-263.93843216,0.00038356,3]
[394351011,1763481045747,-150.88880892,0.00038356,3]
[394351012,1763481045756,-419.33,0.00038356,3]
[394351013,1763481045765,-500.0,0.00038356,2]
[394351014,1763481045775,-242.29121849,0.00038356,3]
[394351015,1763481045784,-464.4430329,0.00038356,3]
[394351016,1763481045794,-452.05858587,0.00038356,3]
[394351017,1763481045803,-443.51863699,0.00038356,3]
[394351018,1763481045816,-382.00416273,0.00038356,3]
[394351019,1763481045825,-185.02,0.00038356,3]
[394351021,1763481045834,-236.68279814,0.00038356,3]
[394351022,1763481045844,-179.74067131,0.00038356,3]
[394351023,1763481045854,-179.01237116,0.00038356,3]
[394351024,1763481045863,-468.54,0.00038356,3]
[394351025,1763481045872,-242.23587732,0.00038356,3]
[394351026,1763481045881,-468.25789939,0.00038356,3]
[394351027,1763481045891,-483.02999575,0.00038356,3]
[394351028,1763481045900,-311.19444505,0.00038356,3]
[394351029,1763481045909,-418.96600002,0.00038356,3]
[394351030,1763481045919,-401.45657037,0.00038356,3]
[394351031,1763481045929,-324.93462192,0.00038356,3]
[394351032,1763481045941,-196.49065005,0.00038356,3]
[394351033,1763481045950,-164.96992304,0.00038356,3]
[394351034,1763481045959,-320.40781422,0.00038356,3]
[394351035,1763481045969,-359.17497953,0.00038356,3]
[394351036,1763481045978,-450.29291493,0.00038356,3]
[394351037,1763481045987,-251.78492287,0.00038356,3]
[394351038,1763481045997,-216.06087921,0.00038356,3]
[394351039,1763481046006,-500.0,0.00038356,3]
[394351040,1763481046016,-273.87179943,0.00038356,3]
[394351041,1763481046025,-420.29444599,0.00038356,3]
[394351042,1763481046035,-372.66706936,0.00038356,3]
[394351043,1763481046043,-162.15,0.00038356,3]
[394351044,1763481046053,-410.06299832,0.00038356,3]
[394351045,1763481046062,-331.34759643,0.00038356,3]
[394351046,1763481046071,-181.28,0.00038356,3]
[394351047,1763481046080,-261.97676712,0.00038356,3]
[394351048,1763481046089,-479.44402617,0.00038356,3]
[394351049,1763481046099,-500.0,0.00038356,3]
[394351050,1763481046108,-376.6,0.00038356,3]
[394351051,1763481046117,-500.0,0.00038356,3]
[394351052,1763481046126,-500.0,0.00038356,3]
[394351053,1763481046135,-277.47182475,0.00038356,3]
[394351054,1763481046145,-378.86437877,0.00038356,3]
[394351055,1763481046155,-207.20018809,0.00038356,3]
[394351056,1763481046164,-250.1130318,0.00038356,3]
[394351057,1763481046173,-227.20485967,0.00038356,3]
[394351058,1763481046183,-469.45297698,0.00038356,3]
[394351059,1763481046193,-305.05610875,0.00038356,3]
[394351060,1763481046202,-360.91331632,0.00038356,3]
[394351061,1763481046211,-323.24355735,0.00038356,3]
[394351062,1763481046220,-245.43457275,0.00038356,3]
[394351063,1763481046230,-196.75,0.00038356,3]
[394351064,1763481046239,-200.0,0.00038356,3]
[394351065,1763481046250,-215.11698788,0.00038356,3]
[394351066,1763481046259,-413.04833581,0.00038356,3]
[394351067,1763481046268,-171.93178306,0.00038356,3]
[394351068,1763481046278,-173.12598772,0.00038356,3]
[394351069,1763481046288,-229.07627675,0.00038356,3]
[394351070,1763481046297,-196.03481737,0.00038356,3]
[394351071,1763481046307,-500.0,0.00038356,3]
[394351072,1763481046317,-397.35906748,0.00038356,3]
[394351073,1763481046326,-433.78146509,0.00038356,3]
[394351074,1763481046335,-446.37613929,0.00038356,3]
[394351075,1763481046344,-404.32540738,0.00038356,3]
[394351076,1763481046354,-448.08482246,0.00038356,3]
[394351077,1763481046363,-500.0,0.00038356,3]
[394351078,1763481046373,-258.16892222,0.00038356,3]
[394351079,1763481046382,-317.8651683,0.00038356,3]
[394351080,1763481046391,-168.07665441,0.00038356,3]
[394351081,1763481046401,-365.61810588,0.00038356,3]
[394351082,1763481046410,-430.73467578,0.00038356,3]
[394351083,1763481046420,-500.0,0.00038356,3]
[394351084,1763481046430,-252.82687446,0.00038356,3]
[394351085,1763481046440,-332.95520822,0.00038356,3]
[394351086,1763481046449,-362.07272164,0.00038356,3]
[394351087,1763481046458,-390.32743736,0.00038356,3]
[394351088,1763481046468,-227.92346011,0.00038356,3]
[394351089,1763481046477,-150.8495475,0.00038356,3]
[394351090,1763481046487,-444.74906513,0.00038356,3]
[394351091,1763481046496,-153.61956248,0.00038356,3]
[394351092,1763481046506,-232.76234714,0.00038356,3]
[394351093,1763481046516,-229.56110926,0.00038356,3]
[394351094,1763481046526,-358.12,0.00038356,3]
[394351095,1763481046535,-292.80389694,0.00038356,3]
[394351096,1763481046545,-422.91689635,0.00038356,3]
[394351097,1763481046554,-307.85984063,0.00038356,3]
[394351098,1763481046563,-418.43650143,0.00038356,3]
[394351099,1763481046571,-431.24885676,0.00038356,3]
[394351100,1763481046580,-379.53446781,0.00038356,3]
[394351101,1763481046589,-396.06098647,0.00038356,3]
[394351102,1763481046598,-367.91902361,0.00038356,3]
[394351103,1763481046607,-200.32355803,0.00038356,3]
[394351104,1763481046616,-266.60527844,0.00038356,3]
[394351105,1763481046625,-185.85907756,0.00038356,3]
[394351106,1763481046635,-346.88,0.00038356,3]
[394351107,1763481046644,-500.0,0.00038356,3]
[394351108,1763481046653,-335.47296286,0.00038356,3]
[394351109,1763481046663,-200.0,0.00038356,3]
[394351110,1763481046671,-500.0,0.00038356,3]
[394351111,1763481046680,-359.93300632,0.00038356,3]
[394351112,1763481046693,-199.33773722,0.00038356,3]
[394351113,1763481046702,-343.65834485,0.00038356,3]
[394351114,1763481046712,-328.71027987,0.00038356,3]
[394351115,1763481046721,-480.93626398,0.00038356,3]
[394351116,1763481046730,-470.91537602,0.00038356,3]
[394351117,1763481046739,-477.5863573,0.00038356,3]
[394351118,1763481046748,-289.26465649,0.00038356,3]
[394351119,1763481046757,-487.29,0.00038356,3]
[394351120,1763481046766,-245.65058337,0.00038356,3]
[394351121,1763481046776,-500.0,0.00038356,3]
[394351122,1763481046785,-321.53758004,0.00038356,3]
[394351123,1763481046794,-359.46392357,0.00038356,3]
[394351125,1763481046806,-361.23046924,0.00038356,3]
[394351128,1763481046815,-330.21816768,0.00038356,3]
[394351131,1763481046825,-400.0,0.00038356,3]
[394351133,1763481046834,-334.98558495,0.00038356,3]
[394351135,1763481046843,-409.06595664,0.00038356,3]
[394351137,1763481046852,-432.02843767,0.00038356,3]
[394351139,1763481046861,-323.5540117,0.00038356,3]
[394351141,1763481046871,-423.25793617,0.00038356,3]
[394351142,1763481046880,-402.8331736,0.00038356,3]
[394351144,1763481046892,-412.52893066,0.00038356,3]
[394351147,1763481046902,-426.49,0.00038356,3]
[394351149,1763481046911,-496.68661114,0.00038356,3]
[394351150,1763481046921,-424.75253496,0.00038356,3]
[394351151,1763481046930,-416.41610847,0.00038356,3]
[394351152,1763481046943,-483.88708219,0.00038356,3]
[394351153,1763481046953,-313.17367297,0.00038356,3]
[394351154,1763481046962,-160.328166,0.00038356,3]
[394351155,1763481046971,-292.25531118,0.00038356,3]
[394351156,1763481046981,-437.65535981,0.00038356,3]
[394351157,1763481046991,-219.03552545,0.00038356,3]
[394351158,1763481047000,-466.20294605,0.00038356,3]
[394351159,1763481047009,-207.27314874,0.00038356,3]
[394351160,1763481047018,-261.21313444,0.00038356,3]
[394351161,1763481047028,-244.05276659,0.00038356,3]
[394351162,1763481047037,-498.92368704,0.00038356,3]
[394351163,1763481047047,-406.90044767,0.00038356,3]
[394351164,1763481047058,-233.27512691,0.00038356,3]
[394351165,1763481047068,-389.20583866,0.00038356,3]
[394351166,1763481047077,-400.0,0.00038356,3]
[394351167,1763481047086,-162.14072815,0.00038356,3]
[394351168,1763481047096,-229.90587933,0.00038356,3]
[394351169,1763481047105,-158.70723278,0.00038356,3]
[394351170,1763481047115,-489.99366441,0.00038356,3]
[394351171,1763481047124,-482.2551427,0.00038356,3]
[394351172,1763481047134,-311.70568316,0.00038356,3]
[394351173,1763481047143,-201.92712094,0.00038356,3]
[394351174,1763481047152,-406.19879891,0.00038356,3]
[394351175,1763481047161,-378.20741222,0.00038356,3]
[394351176,1763481047171,-266.78566983,0.00038356,3]
[394351177,1763481047180,-400.0,0.00038356,3]
[394351178,1763481047193,-460.24355214,0.00038356,3]
[394351179,1763481047202,-190.45056387,0.00038356,3]
[394351180,1763481047211,-336.93986463,0.00038356,3]
[394351181,1763481047220,-400.0,0.00038356,3]
[394351182,1763481047228,-289.80880677,0.00038356,3]
[394351183,1763481047237,-476.71970986,0.00038356,3]
[394351184,1763481047247,-202.26125733,0.00038356,3]
[394351185,1763481047256,-400.0,0.00038356,3]
[394351186,1763481047265,-332.67053786,0.00038356,3]
[394351187,1763481047275,-281.63182064,0.00038356,3]
[394351188,1763481047284,-191.74017387,0.00038356,3]
[394351189,1763481047294,-228.13515242,0.00038356,3]
[394351190,1763481047303,-448.11003574,0.00038356,3]
[394351191,1763481047313,-421.66814666,0.00038356,3]
[394351192,1763481047322,-320.57243304,0.00038356,3]
[394351193,1763481047329,-472.72892185,0.00038356,3]
[394351194,1763481047336,-360.30620997,0.00038356,3]
[394351195,1763481047343,-291.75050115,0.00038356,3]
[394351196,1763481047351,-453.54352775,0.00038356,3]
[394351197,1763481047491,-367.68028942,0.00038356,3]
[394351198,1763481047501,-373.12516426,0.00038356,3]
[394351199,1763481047511,-405.72308008,0.00038356,3]
[394351200,1763481047520,-405.14146879,0.00038356,3]
[394351201,1763481047529,-299.21110219,0.00038356,3]
[394351202,1763481047538,-209.85377288,0.00038356,3]
[394351203,1763481047548,-453.73414683,0.00038356,3]
[394351204,1763481047557,-414.27543224,0.00038356,3]
[394351205,1763481047566,-404.27653086,0.00038356,3]
[394351206,1763481047576,-403.82518578,0.00038356,3]
[394351207,1763481047585,-371.72717276,0.00038356,3]
[394351208,1763481047594,-400.0,0.00038356,3]
[394351209,1763481047604,-379.36493661,0.00038356,3]
[394351210,1763481047613,-452.46428286,0.00038356,3]
[394351211,1763481047622,-336.44043819,0.00038356,3]
[394351212,1763481047631,-415.84208762,0.00038356,3]
[394351213,1763481047640,-412.36062003,0.00038356,3]
[394351214,1763481047650,-492.76864165,0.00038356,3]
[394351215,1763481047659,-405.09307131,0.00038356,3]
[394351216,1763481047669,-468.49593707,0.00038356,3]
[394351217,1763481047678,-188.44,0.00038356,3]
[394351218,1763481047688,-314.76686611,0.00038356,3]
[394351219,1763481047697,-378.20784687,0.00038356,3]
[394351220,1763481047706,-404.40537965,0.00038356,3]
[394351221,1763481047716,-184.09588903,0.00038356,3]
[394351222,1763481047725,-454.50874585,0.00038356,3]
[394351223,1763481047734,-289.10609093,0.00038356,3]
[394351224,1763481047743,-318.56699235,0.00038356,3]
[394351225,1763481047752,-404.42531863,0.00038356,3]
[394351226,1763481047761,-409.13695782,0.00038356,3]
[394351227,1763481047770,-291.81505047,0.00038356,3]
[394351228,1763481047780,-221.9126669,0.00038356,3]
[394351229,1763481047789,-407.59385819,0.00038356,3]
[394351230,1763481047798,-202.44206583,0.00038356,3]
[394351231,1763481047809,-404.61854379,0.00038356,3]
[394351232,1763481047820,-379.27245299,0.00038356,3]
[394351233,1763481047829,-500.0,0.00038356,3]
[394351234,1763481047839,-2088.19,0.00038356,2]
[394351235,1763481047849,-403.81401653,0.00038356,3]
[394351236,1763481047858,-411.07831482,0.00038356,3]
[394351237,1763481047868,-486.46,0.00038356,3]
[394351238,1763481047877,-591.99669534,0.00038356,3]
[394351239,1763481047886,-520.17828082,0.00038356,3]
[394351240,1763481047895,-430.25437203,0.00038356,3]
[394351241,1763481047904,-463.47453215,0.00038356,3]
[394351242,1763481047913,-210.05468957,0.00038356,3]
[394351243,1763481047922,-287.18154669,0.00038356,3]
[394351244,1763481047931,-366.40270979,0.00038356,3]
[394351245,1763481047942,-312.28029999,0.00038356,3]
[394351246,1763481047951,-194.29091239,0.00038356,3]
[394351247,1763481047960,-493.85131728,0.00038356,3]
[394351248,1763481047969,-500.0,0.00038356,3]
[394351249,1763481047979,-152.69686147,0.00038356,3]
[394351250,1763481047987,-332.64647858,0.00038356,3]
[394351251,1763481047996,-194.74118278,0.00038356,3]
[394351252,1763481048007,-500.0,0.00038356,2]
[394351253,1763481048017,-364.21322701,0.00038356,3]
[394351254,1763481048026,-500.0,0.00038356,3]
[394351255,1763481048035,-491.06138462,0.00038356,3]
[394351256,1763481048044,-226.20429252,0.00038356,3]
[394351257,1763481048053,-426.79840215,0.00038356,3]
[394351258,1763481048063,-437.76845512,0.00038356,3]
[394351259,1763481048072,-362.52965683,0.00038356,3]
[394351260,1763481048081,-177.38847083,0.00038356,3]
[394351261,1763481048090,-207.58547258,0.00038356,3]
[394351262,1763481048099,-413.06721588,0.00038356,3]
[394351263,1763481048108,-419.03865876,0.00038356,3]
[394351264,1763481048118,-381.61223383,0.00038356,3]
[394351265,1763481048127,-419.63466171,0.00038356,3]
[394351266,1763481048136,-280.3438262,0.00038356,3]
[394351267,1763481048145,-277.92196297,0.00038356,3]
[394351268,1763481048154,-500.0,0.00038356,3]
[394351269,1763481048163,-432.68294655,0.00038356,3]
[394351270,1763481048173,-247.90715879,0.00038356,3]
[394351271,1763481048182,-433.7150599,0.00038356,3]
[394351272,1763481048193,-213.20275906,0.00038356,3]
[394351273,1763481048202,-340.22,0.00038356,3]
[394351274,1763481048213,-450.8716889,0.00038356,3]
[394351275,1763481048222,-178.80962002,0.00038356,3]
[394351276,1763481048231,-174.96149756,0.00038356,3]
[394351277,1763481048241,-221.29,0.00038356,3]
[394351278,1763481048250,-308.02086999,0.00038356,3]
[394351279,1763481048260,-359.15093615,0.00038356,3]
[394351280,1763481048269,-250.99717663,0.00038356,3]
[394351281,1763481048279,-368.02910938,0.00038356,3]
[394351282,1763481048288,-261.15292436,0.00038356,3]
[394351283,1763481048298,-426.00565992,0.00038356,3]
[394351284,1763481048307,-160.91316699,0.00038356,3]
[394351285,1763481048316,-362.73273482,0.00038356,3]
[394351286,1763481048325,-277.38034303,0.00038356,3]
[394351287,1763481048334,-150.68137508,0.00038356,3]
[394351288,1763481048344,-497.51632344,0.00038356,3]
[394351289,1763481048353,-236.06124192,0.00038356,3]
[394351290,1763481048362,-364.79200652,0.00038356,3]
[394351291,1763481048372,-474.43149599,0.00038356,3]
[394351292,1763481048382,-260.01791069,0.00038356,3]
[394351293,1763481048391,-392.55172092,0.00038356,3]
[394351294,1763481048401,-500.0,0.00038356,3]
[394351295,1763481048410,-422.43989034,0.00038356,3]
[394351296,1763481048419,-231.87808674,0.00038356,3]
[394351297,1763481048428,-464.33455361,0.00038356,3]
[394351298,1763481048439,-391.73994888,0.00038356,3]
[394351299,1763481048449,-287.08119743,0.00038356,3]
[394351300,1763481048458,-300.0,0.00038356,2]
[394351301,1763481048467,-500.35613029,0.00038356,2]
[394351302,1763481048477,-349.5,0.00038356,3]
[394351303,1763481048486,-262.09498853,0.00038356,3]
[394351304,1763481048496,-365.444944,0.00038356,3]
[394351305,1763481048505,-286.66747157,0.00038356,3]
[394351306,1763481048514,-446.73836455,0.00038356,3]
[394351307,1763481048524,-235.2506803,0.00038356,3]
[394351308,1763481048534,-365.6190297,0.00038356,3]
[394351309,1763481048543,-452.33832068,0.00038356,3]
[394351310,1763481048553,-485.49017221,0.00038356,3]
[394351311,1763481048562,-407.047211,0.00038356,3]
[394351312,1763481048573,-593.65172619,0.00038356,3]
[394351313,1763481048582,-443.80942893,0.00038356,3]
[394351314,1763481048591,-500.0,0.00038356,3]
[394351315,1763481048601,-411.66853547,0.00038356,3]
[394351316,1763481048610,-160.70722331,0.00038356,3]
[394351317,1763481048621,-192.91439512,0.00038356,3]
[394351318,1763481048630,-313.48303094,0.00038356,3]
[394351319,1763481048639,-545.05084773,0.00038356,3]
[394351320,1763481048648,-281.42570783,0.00038356,3]
[394351321,1763481048658,-199.86856198,0.00038356,3]
[394351322,1763481048667,-211.43766779,0.00038356,3]
[394351323,1763481048677,-461.96814833,0.00038356,3]
[394351324,1763481048689,-494.18414123,0.00038356,3]
[394351325,1763481048704,-427.99059855,0.00038356,3]
[394351326,1763481048714,-428.83825329,0.00038356,3]
[394351327,1763481048723,-159.02206173,0.00038356,3]
[394351328,1763481048732,-235.05162455,0.00038356,3]
[394351329,1763481048741,-500.0,0.00038356,3]
[394351330,1763481048751,-352.20606671,0.00038356,3]
[394351331,1763481048761,-369.35414305,0.00038356,3]
[394351332,1763481048772,-348.74889591,0.00038356,3]
[394351333,1763481048781,-327.12958469,0.00038356,3]
[394351334,1763481048791,-395.33296284,0.00038356,3]
[394351335,1763481048801,-439.10523904,0.00038356,3]
[394351336,1763481048815,-275.68524714,0.00038356,3]
[394351337,1763481048825,-304.4,0.00038356,3]
[394351338,1763481048834,-436.75501695,0.00038356,3]
[394351339,1763481048844,-403.80745193,0.00038356,3]
[394351340,1763481048854,-354.46063609,0.00038356,3]
[394351341,1763481048864,-412.92478485,0.00038356,3]
[394351342,1763481048874,-474.44426319,0.00038356,3]
[394351343,1763481048884,-605.78363508,0.00038356,3]
[394351344,1763481048895,-458.72879616,0.00038356,3]
[394351345,1763481048905,-289.3759962,0.00038356,3]
[394351346,1763481048914,-500.0,0.00038356,3]
[394351347,1763481048924,-190.55441264,0.00038356,3]
[394351348,1763481048933,-476.89537388,0.00038356,3]
[394351349,1763481048943,-252.76788936,0.00038356,3]
[394351350,1763481048952,-369.35,0.00038356,3]
[394351351,1763481048962,-500.0,0.00038356,3]
[394351352,1763481048971,-254.46279946,0.00038356,3]
[394351353,1763481048980,-403.40080416,0.00038356,3]
[394351354,1763481048989,-409.71247364,0.00038356,3]
[394351355,1763481049000,-300.0,0.00038356,2]
[394351356,1763481049010,-159.19925046,0.00038356,3]
[394351357,1763481049019,-332.11322147,0.00038356,3]
[394351358,1763481049028,-291.9471424,0.00038356,3]
[394351359,1763481049038,-305.3793293,0.00038356,3]
[394351360,1763481049047,-476.16844166,0.00038356,3]
[394351361,1763481049056,-240.65259767,0.00038356,3]
[394351362,1763481049067,-442.28769425,0.00038356,3]
[394351363,1763481049077,-472.11074206,0.00038356,3]
[394351364,1763481049087,-217.32241476,0.00038356,3]
[394351365,1763481049097,-443.69629041,0.00038356,3]
[394351366,1763481049108,-370.65414956,0.00038356,3]
[394351367,1763481049118,-390.10045855,0.00038356,3]
[394351368,1763481049128,-227.39192722,0.00038356,3]
[394351369,1763481049137,-405.43016449,0.00038356,3]
[394351370,1763481049146,-172.64898781,0.00038356,3]
[394351371,1763481049155,-233.25378037,0.00038356,3]
[394351372,1763481049164,-738.07,0.00038356,3]
[394351373,1763481049173,-500.0,0.00038356,3]
[394351374,1763481049182,-500.0,0.00038356,3]
[394351375,1763481049193,-172.08912884,0.00038356,3]
[394351376,1763481049203,-500.0,0.00038356,3]
[394351377,1763481049212,-192.7526051,0.00038356,3]
[394351378,1763481049221,-500.0,0.00038356,3]
[394351379,1763481049230,-500.0,0.00038356,3]
[394351380,1763481049239,-500.0,0.00038356,3]
[394351381,1763481049249,-500.0,0.00038356,3]
[394351382,1763481049258,-500.0,0.00038356,3]
[394351383,1763481049267,-500.0,0.00038356,3]
[394351384,1763481049277,-566.50278007,0.00038356,3]
[394351385,1763481049287,-478.76460583,0.00038356,3]
[394351386,1763481049296,-452.9948708,0.00038356,3]
[394351387,1763481049306,-270.18119436,0.00038356,3]
[394351388,1763481049315,-325.81684564,0.00038356,3]
[394351389,1763481049325,-184.18860585,0.00038356,3]
[394351390,1763481049334,-226.60643172,0.00038356,3]
[394351391,1763481049343,-287.95812226,0.00038356,3]
[394351392,1763481049352,-205.06988523,0.00038356,3]
[394351393,1763481049361,-415.90763462,0.00038356,3]
[394351394,1763481049371,-301.73189666,0.00038356,3]
[394351395,1763481049380,-497.71254094,0.00038356,3]
[394351396,1763481049389,-327.87617347,0.00038356,3]
[394351397,1763481049398,-456.82863993,0.00038356,3]
[394351398,1763481049407,-440.29360154,0.00038356,3]
[394351399,1763481049417,-500.0,0.00038356,3]
[394351400,1763481049427,-382.8034506,0.00038356,3]
[394351401,1763481049436,-498.80049449,0.00038356,3]
[394351402,1763481049445,-444.74673226,0.00038356,3]
[394351403,1763481049454,-150.88751324,0.00038356,3]
[394351404,1763481049463,-290.71204893,0.00038356,3]
[394351405,1763481049473,-471.57375032,0.00038356,3]
[394351406,1763481049482,-237.3438387,0.00038356,3]
[394351407,1763481049492,-382.33241756,0.00038356,3]
[394351408,1763481049501,-163.39579039,0.00038356,3]
[394351409,1763481049510,-378.55434863,0.00038356,3]
[394351410,1763481049519,-468.46146875,0.00038356,3]
[394351411,1763481049528,-438.69833968,0.00038356,3]
[394351412,1763481049537,-298.78545494,0.00038356,3]
[394351413,1763481049546,-225.4566652,0.00038356,3]
[394351414,1763481049555,-193.44271404,0.00038356,3]
[394351415,1763481049564,-500.0,0.00038356,3]
[394351416,1763481049573,-436.10710076,0.00038356,3]
[394351417,1763481049582,-339.98367061,0.00038356,3]
[394351418,1763481049591,-247.07848155,0.00038356,3]
[394351419,1763481049599,-328.94530299,0.00038356,3]
[394351420,1763481049609,-419.5783359,0.00038356,3]
[394351421,1763481049618,-387.5755843,0.00038356,3]
[394351422,1763481049627,-481.54758033,0.00038356,3]
[394351423,1763481049636,-196.95446423,0.00038356,3]
[394351424,1763481049645,-445.16882788,0.00038356,3]
[394351425,1763481049654,-470.89353595,0.00038356,3]
[394351426,1763481049663,-1807.79,0.00038356,3]
[394351427,1763481049672,-187.22,0.00038356,3]
[394351428,1763481049681,-301.63815115,0.00038356,3]
[394351429,1763481049692,-387.67362796,0.00038356,3]
[394351430,1763481049701,-634.41849788,0.00038356,3]
[394351431,1763481049710,-310.27085816,0.00038356,3]
[394351432,1763481049719,-410.25418556,0.00038356,3]
[394351433,1763481049728,-412.56442989,0.00038356,3]
[394351434,1763481049737,-390.92592588,0.00038356,3]
[394351435,1763481049746,-421.68361827,0.00038356,3]
[394351436,1763481049755,-423.51179377,0.00038356,3]
[394351437,1763481049764,-275.87542498,0.00038356,3]
[394351438,1763481049773,-223.53724398,0.00038356,3]
[394351439,1763481049783,-151.64574225,0.00038356,3]
[394351440,1763481049791,-500.0,0.00038356,3]
[394351441,1763481049800,-325.91451773,0.00038356,3]
[394351442,1763481049813,-505.56347896,0.00038356,3]
[394351443,1763481049822,-310.96370974,0.00038356,3]
[394351444,1763481049831,-425.35854952,0.00038356,3]
[394351445,1763481049840,-477.97398983,0.00038356,3]
[394351446,1763481049850,-237.36594272,0.00038356,3]
[394351447,1763481049860,-221.76566949,0.00038356,3]
[394351448,1763481049869,-331.74648977,0.00038356,3]
[394351449,1763481049879,-312.14184739,0.00038356,3]
[394351450,1763481049889,-500.0,0.00038356,3]
[394351451,1763481049898,-271.06516231,0.00038356,3]
[394351452,1763481049907,-259.87162209,0.00038356,3]
[394351453,1763481049916,-234.95798946,0.00038356,3]
[394351454,1763481049926,-171.1978339,0.00038356,3]
[394351455,1763481049936,-332.26843543,0.00038356,3]
[394351456,1763481049945,-473.58540203,0.00038356,3]
[394351457,1763481049954,-264.99067081,0.00038356,3]
[394351458,1763481049963,-443.85152779,0.00038356,3]
[394351459,1763481049972,-327.79955379,0.00038356,3]
[394351460,1763481049981,-429.38987144,0.00038356,3]
[394351461,1763481049991,-156.88594818,0.00038356,3]
[394351462,1763481050000,-181.50843702,0.00038356,3]
[394351463,1763481050009,-1468.68,0.00038356,3]
[394351464,1763481050018,-226.25332514,0.00038356,3]
[394351465,1763481050028,-295.30227817,0.00038356,3]
[394351466,1763481050038,-410.69476777,0.00038356,3]
[394351467,1763481050047,-174.16414899,0.00038356,3]
[394351468,1763481050058,-355.94385174,0.00038356,3]
[394351469,1763481050067,-186.36529523,0.00038356,3]
[394351470,1763481050076,-500.0,0.00038356,3]
[394351471,1763481050085,-465.95203679,0.00038356,3]
[394351472,1763481050095,-288.27479396,0.00038356,3]
[394351473,1763481050104,-417.44342292,0.00038356,3]
[394351474,1763481050113,-187.01095908,0.00038356,3]
[394351475,1763481050122,-345.779166,0.00038356,3]
[394351476,1763481050131,-500.0,0.00038356,3]
[394351477,1763481050140,-167.83752243,0.00038356,3]
[394351478,1763481050149,-154.41908077,0.00038356,3]
[394351479,1763481050158,-394.2795653,0.00038356,3]
[394351480,1763481050168,-392.97231981,0.00038356,3]
[394351481,1763481050177,-258.81553393,0.00038356,3]
[394351482,1763481050186,-258.79397154,0.00038356,3]
[394351483,1763481050196,-431.81009893,0.00038356,3]
[394351484,1763481050205,-194.16323013,0.00038356,3]
[394351485,1763481050215,-482.97635483,0.00038356,3]
[394351486,1763481050224,-420.12814624,0.00038356,3]
[394351487,1763481050234,-154.22087343,0.00038356,3]
[394351488,1763481050243,-377.86670469,0.00038356,3]
[394351489,1763481050252,-481.22837823,0.00038356,3]
[394351490,1763481050262,-423.58962344,0.00038356,3]
[394351491,1763481050271,-156.61200907,0.00038356,3]
[394351492,1763481050281,-500.0,0.00038356,3]
[394351493,1763481050290,-260.0,0.00038356,3]
[394351494,1763481050300,-328.77134252,0.00038356,3]
[394351495,1763481050309,-279.69109736,0.00038356,3]
[394351496,1763481050319,-170.31681568,0.00038356,3]
[394351497,1763481050328,-264.25,0.00038356,3]
[394351498,1763481050337,-246.3837678,0.00038356,3]
[394351499,1763481050346,-500.0,0.00038356,3]
[394351500,1763481050355,-286.3840938,0.00038356,3]
[394351501,1763481050364,-258.03924585,0.00038356,3]
[394351502,1763481050373,-451.24576321,0.00038356,3]
[394351503,1763481050383,-3990.87,0.00038356,3]